bitfinex/quotes_ETHUSD_20250115
["timestamp","ask_amount","ask_price","bid_price","bid_amount"]
[1736958723328,8.67702801,3355.9,3355.8,9.31e-06]
[1736958723959,8.73172628,3355.9,3355.8,9.31e-06]
[1736958724481,12.20455641,3355.9,3355.8,9.31e-06]
[1736958724779,8.73172628,3355.9,3355.8,9.31e-06]
[1736958725081,3.55,3355.8,3354.4,0.208]
[1736958725378,6.45337013,3355.1,3354.4,0.208]
[1736958725544,6.45337013,3355.1,3354.5,35.0]
[1736958725545,2.98092,3354.7,3354.5,35.0]
[1736958725749,2.98084,3354.8,3354.6,0.0290346]
[1736958726055,3.47283013,3355.1,3354.4,0.208]
[1736958726258,2.98091,3354.7,3354.4,0.208]
[1736958726427,2.981,3354.6,3354.4,0.208]
[1736958726631,2.981,3354.6,3354.5,0.02905717]
[1736958726855,2.98107,3354.5,3354.4,0.208]
[1736958727056,2.98115,3354.4,3354.3,0.0144]
[1736958727767,2.98143,3354.1,3354.0,0.208]
[1736958728592,3.8288961,3354.7,3354.0,0.208]
[1736958728746,2.98099,3354.6,3354.0,0.208]
[1736958728944,3.53071,3354.9,3354.0,0.208]
[1736958729278,2.981,3354.6,3354.1,0.208]
[1736958729433,2.98044,3355.3,3354.1,0.208]
[1736958729639,3.47283013,3355.4,3354.2,0.0144]
[1736958729871,2.98124,3354.3,3354.2,0.0144]
[1736958730221,2.98089,3354.7,3354.1,0.208]
[1736958730222,2.98133,3354.2,3354.1,0.208]
[1736958730881,2.98151,3354.0,3353.9,0.0144]
[1736958731343,2.98159,3354.0,3353.6,0.2224]
[1736958732088,3.47283013,3354.0,3353.6,0.0144]
[1736958732288,3.95119314,3354.0,3353.3,0.2224]
[1736958732573,2.98187,3353.6,3353.3,0.2224]
[1736958733072,2.98196,3353.5,3353.3,0.2224]
[1736958733279,2.98196,3353.5,3352.6,35.46745906]
[1736958733450,2.98238,3353.1,3352.7,0.208]
[1736958733778,2.98192,3353.6,3352.8,0.0442228]
[1736958733999,3.0,3353.9,3352.9,0.0289463]
[1736958734196,3.47283013,3354.1,3353.0,0.0144]
[1736958734403,3.47283013,3354.1,3353.1,0.02809977]
[1736958734404,3.0,3354.0,3353.1,0.02809977]
[1736958734598,3.0,3354.0,3353.2,0.0144]
[1736958734812,6.45426013,3354.1,3353.3,0.02805761]
[1736958735107,2.98154,3354.0,3353.3,0.02805761]
[1736958735512,2.98176,3353.8,3353.2,0.31688598]
[1736958735714,6.53151,3354.0,3353.2,0.0144]
[1736958735893,2.98204,3353.4,3353.3,0.02805761]
[1736958736303,2.98204,3353.4,3353.2,0.0144]
[1736958736500,2.98213,3353.3,3353.2,0.0144]
[1736958736823,3.47283013,3353.3,3352.9,0.0144]
[1736958736963,3.47283013,3353.3,3352.5,0.1702123]
[1736958736964,2.98269,3352.7,3352.5,0.1846123]
[1736958737165,2.98275,3352.6,3352.5,0.1702123]
[1736958737622,0.55,3353.1,3352.5,0.1702123]
[1736958737904,0.02980968,3353.0,3352.5,0.1702123]
[1736958738094,2.9827,3352.7,3352.5,0.1702123]
[1736958738614,3.0,3353.0,3352.5,0.1702123]
[1736958739114,6.45509013,3353.2,3352.6,0.0144]
[1736958739262,3.47283013,3353.5,3352.6,0.0144]
[1736958739468,2.98224,3353.2,3352.6,0.0144]
[1736958739897,3.0,3353.4,3352.6,0.0144]
[1736958740252,2.98223,3353.2,3352.6,0.0144]
[1736958740512,2.98243,3353.0,3352.6,0.0144]
[1736958741006,3.47283013,3353.1,3352.6,0.0144]
[1736958741178,3.47283013,3353.1,3352.5,0.1702123]
[1736958741179,2.98275,3352.6,3352.5,0.1702123]
[1736958743207,3.47283013,3353.1,3352.5,0.1846123]
[1736958743385,2.98275,3352.6,3352.5,0.1702123]
[1736958745068,6.47283013,3353.1,3352.5,0.1702123]
[1736958745375,2.98275,3352.6,3352.5,0.1702123]
[1736958746301,5.98275,3352.6,3352.5,0.1702123]
[1736958746802,6.01255968,3352.6,3352.5,0.1702123]
[1736958747148,6.01255968,3352.6,3352.5,2.3e-06]
[1736958747355,5.98275,3352.6,3352.5,2.3e-06]
[1736958747512,7.33751169,3352.6,3352.5,2.3e-06]
[1736958747730,3.8114,3352.1,3351.7,2.3e-06]
[1736958748031,2.98441,3350.8,3349.6,2.98534]
[1736958748198,2.98441,3350.8,3349.8,0.208]
[1736958748199,2.98457,3350.6,3349.8,0.208]
[1736958748402,3.47283013,3350.8,3349.9,0.02942357]
[1736958748957,3.47283013,3350.3,3349.9,0.02942357]
[1736958749309,2.98507,3350.0,3349.9,0.02942357]
[1736958749509,2.98533,3349.8,3349.1,0.1702123]
[1736958749749,3.47283013,3349.5,3349.1,0.1702123]
[1736958751011,6.45800013,3349.9,3349.1,0.1702123]
[1736958751355,3.47283013,3349.9,3348.8,0.46800199]
[1736958751712,3.47283013,3349.9,3349.1,2.98587]
[1736958751912,3.47283013,3349.9,3349.2,0.92117711]
[1736958752114,3.47283013,3349.9,3349.1,2.98579]
[1736958752313,3.47283013,3349.9,3349.2,2.98576]
[1736958752768,3.47283013,3349.9,3349.0,0.59068753]
[1736958752917,3.47283013,3349.9,3349.3,2.98568]
[1736958753115,3.47283013,3349.9,3349.1,2.98584]
[1736958753344,3.47283013,3349.9,3349.2,0.37865275]
[1736958753513,2.98409,3351.1,3349.7,2.9853]
[1736958753727,3.47283013,3350.4,3349.6,3.0]
[1736958753929,3.47283013,3351.1,3349.7,3.57984693]
[1736958754130,3.47283013,3351.1,3350.1,3.0]
[1736958754328,3.47283013,3350.7,3350.2,0.21]
[1736958754845,3.47283013,3350.7,3349.6,2.98537]
[1736958754846,3.47283013,3350.3,3349.6,3.19537]
[1736958755064,3.47283013,3350.3,3349.7,2.98531]
[1736958755228,3.47283013,3350.3,3349.8,3.36323207]
[1736958755859,0.8032,3351.1,3349.8,3.36323207]
[1736958755860,3.47283013,3350.7,3349.8,0.37800207]
[1736958756042,3.47283013,3350.7,3350.0,2.98507]
[1736958756448,3.47283013,3350.3,3349.8,0.37800207]
[1736958756688,3.47283013,3350.7,3349.6,0.79471073]
[1736958756689,3.47283013,3349.9,3349.6,0.79471073]
[1736958757325,3.47283013,3349.9,3349.7,0.21]
[1736958758422,3.47283013,3349.9,3349.2,0.58889449]
[1736958758623,3.47283013,3349.9,3349.3,0.21]
[1736958758828,3.47283013,3350.2,3349.5,2.98552]
[1736958759023,3.47283013,3350.2,3349.3,3.22550118]
[1736958759024,3.47283013,3350.2,3349.6,0.62110212]
[1736958759264,3.47283013,3350.2,3349.3,3.21]
[1736958759823,3.47283013,3350.2,3349.4,2.9856]
[1736958760074,3.47283013,3350.2,3349.3,3.0]
[1736958760273,3.47283013,3350.2,3349.5,0.21]
[1736958760643,3.50263981,3350.2,3349.5,0.21]
[1736958760946,0.43058398,3350.1,3349.3,0.21]
[1736958761146,6.45808013,3349.8,3348.9,0.46790743]
[1736958761475,6.45808013,3349.8,3349.0,0.21]
[1736958761777,6.78802,3350.3,3349.0,0.21]
[1736958761931,3.0,3350.3,3349.3,2.98565]
[1736958762133,3.47283013,3350.4,3349.7,2.98526]
[1736958762431,3.47283013,3350.8,3350.0,2.98503]
[1736958762661,3.47283013,3350.8,3350.1,0.21]
[1736958763263,3.47283013,3350.4,3350.1,0.21]
[1736958763777,3.47283013,3350.4,3349.7,0.59756789]
[1736958763778,3.47283013,3350.7,3349.7,0.59756789]
[1736958763989,2.98503,3350.1,3349.8,0.21]
[1736958764217,0.02980968,3350.2,3349.5,0.21]
[1736958764417,2.98533,3349.8,3349.5,0.21]
[1736958764703,3.47283013,3349.9,3348.9,0.46790743]
[1736958765005,3.47283013,3349.5,3348.9,0.67790743]
[1736958765312,2.98587,3349.1,3348.9,0.67790743]
[1736958765494,2.98596,3349.0,3348.9,0.46790743]
[1736958765858,2.98613,3348.9,3348.0,0.21]
[1736958766305,2.98614,3348.8,3348.2,0.46808886]
[1736958766611,3.47283013,3348.7,3348.2,0.46808886]
[1736958767103,3.47283013,3349.1,3348.1,0.21]
[1736958767259,4.27603013,3349.5,3348.6,2.98631]
[1736958767700,3.47283013,3349.5,3348.6,2.98631]
[1736958767859,3.47283013,3349.5,3348.7,2.98623]
[1736958768202,3.47283013,3349.5,3348.8,2.9861]
[1736958768501,3.47283013,3349.5,3348.9,0.21]
[1736958768710,6.45775013,3350.2,3349.2,2.98574]
[1736958768998,0.58463662,3350.4,3348.9,0.21]
[1736958768999,2.98546,3349.6,3348.9,0.21]
[1736958769198,2.98569,3349.3,3348.9,0.21]
[1736958769356,2.98581,3349.2,3348.9,0.21]
[1736958769900,3.47283013,3349.0,3347.8,3.46809607]
[1736958770109,2.98582,3349.2,3348.5,0.21]
[1736958770910,3.47283013,3349.3,3348.5,0.21]
[1736958771109,2.98545,3349.6,3348.5,0.21]
[1736958771270,2.98545,3349.6,3348.2,2.98662]
[1736958771604,4.23083013,3349.7,3348.7,2.98615]
[1736958771764,3.47283013,3349.7,3348.8,2.98607]
[1736958771963,3.47283013,3349.7,3348.9,0.02985617]
[1736958772277,3.47283013,3350.1,3349.2,2.98571]
[1736958772610,0.7851,3350.5,3349.3,0.02985176]
[1736958772611,4.25793013,3350.5,3349.3,0.02985176]
[1736958772764,4.25793013,3350.5,3349.7,2.98526]
[1736958772765,3.47283013,3350.5,3349.7,2.98526]
[1736958772958,3.0,3350.4,3349.7,2.98526]
[1736958773206,3.0,3350.4,3349.8,0.03294753]
[1736958773359,3.47283013,3350.5,3349.8,3.31999828]
[1736958773566,3.47283013,3350.5,3349.8,0.33476828]
[1736958773876,6.45747013,3350.5,3349.8,0.33476828]
[1736958774205,6.45747013,3350.5,3349.4,0.21]
[1736958774206,0.02980968,3350.4,3349.4,0.21]
[1736958774364,3.47283013,3350.1,3349.4,0.21]
[1736958774567,2.9852,3349.9,3349.5,0.04350438]
[1736958774761,3.47283013,3349.7,3349.5,0.04350438]
[1736958774962,2.98578,3349.3,3348.3,2.98651]
[1736958775208,0.7851,3349.5,3348.6,2.98625]
[1736958775370,2.98555,3349.5,3348.4,3.495121]
[1736958775707,2.98579,3349.2,3348.4,0.508651]
[1736958775860,3.47283013,3349.3,3348.5,3.02577949]
[1736958776057,3.47283013,3349.3,3348.6,2.98631]
[1736958776262,3.47283013,3349.3,3348.7,0.21]
[1736958776499,3.33309301,3349.2,3348.7,0.24320743]
[1736958776712,3.47283013,3349.3,3348.7,0.21]
[1736958776913,3.47283013,3349.3,3348.8,0.03334043]
[1736958777410,3.47283013,3349.3,3348.7,0.21]
[1736958777576,0.7851,3349.1,3348.9,0.03331401]
[1736958777912,6.45856013,3349.3,3348.7,0.21]
[1736958778118,2.98582,3349.2,3348.2,0.58766559]
[1736958778414,4.19719614,3349.3,3348.8,0.03334043]
[1736958778568,2.98578,3349.2,3348.3,3.19658]
[1736958779003,2.98578,3349.2,3348.4,0.03094128]
[1736958779279,0.7851,3349.9,3349.0,2.98594]
[1736958779484,1.50940101,3349.9,3349.1,0.217]
[1736958779684,4.50940101,3349.9,3349.1,0.24777054]
[1736958779997,7.49457101,3349.9,3349.1,0.217]
[1736958780201,4.50940101,3349.9,3349.2,0.03330834]
[1736958780400,3.47283013,3350.0,3349.1,0.217]
[1736958780729,2.98535,3349.7,3349.2,0.03330834]
[1736958780925,3.47283013,3349.6,3349.2,0.03330834]
[1736958781228,2.98569,3349.3,3349.2,0.03330834]
[1736958781417,0.7851,3349.4,3349.1,0.217]
[1736958781585,3.41151301,3349.3,3349.1,0.217]
[1736958781783,3.41151301,3349.3,3348.2,3.57431559]
[1736958781784,2.98578,3349.2,3348.2,3.57431559]
[1736958781984,0.42579301,3349.3,3348.2,3.57431559]
[1736958781985,0.42579301,3349.3,3348.3,0.217]
[1736958782325,3.41156301,3349.3,3348.4,2.98649]
[1736958782483,3.41156301,3349.3,3348.3,0.25054615]
[1736958782685,2.98579,3349.2,3348.5,0.02870854]
[1736958782887,0.42579301,3349.3,3348.4,0.03094128]
[1736958783089,2.98599,3349.0,3348.6,0.03089249]
[1736958783320,2.98599,3349.0,3348.5,0.03086028]
[1736958783520,2.98599,3349.0,3348.7,0.03081149]
[1736958783685,3.47283013,3349.2,3348.6,0.03083589]
[1736958783882,3.47283013,3349.6,3348.8,0.03335269]
[1736958784187,3.14901755,3349.6,3348.9,0.03083064]
[1736958784625,3.0,3349.5,3348.2,0.58766559]
[1736958784800,2.98579,3349.2,3348.5,0.217]
[1736958785010,2.98565,3349.4,3348.5,0.217]
[1736958785208,3.0,3349.5,3348.6,0.03090381]
[1736958785555,6.45792013,3350.0,3348.9,2.98604]
[1736958785849,3.47283013,3350.0,3349.0,0.33197744]
[1736958786012,3.47283013,3350.4,3349.1,0.55]
[1736958786341,0.836273,3350.6,3349.3,0.55]
[1736958786654,0.836273,3350.6,3350.1,2.9849]
[1736958786941,3.47283013,3351.2,3350.2,0.25642502]
[1736958787309,3.47283013,3350.8,3350.2,0.25642502]
[1736958787807,6.80455314,3350.8,3350.3,0.03939334]
[1736958788028,2.98447,3350.7,3350.2,0.217]
[1736958788230,0.7744,3351.4,3350.3,0.03939334]
[1736958788432,2.98365,3351.6,3350.5,2.98454]
[1736958788642,6.45648013,3351.6,3350.5,2.98454]
[1736958788792,3.47283013,3351.6,3350.7,2.98444]
[1736958788997,3.47283013,3351.6,3350.7,3.282884]
[1736958789241,3.47283013,3351.2,3350.3,2.9848]
[1736958789451,3.47283013,3351.2,3350.2,0.217]
[1736958789597,3.47283013,3351.2,3350.4,2.98469]
[1736958789794,3.47283013,3350.6,3350.0,0.217]
[1736958790211,3.47283013,3350.9,3350.0,0.217]
[1736958790421,3.47283013,3350.9,3350.1,0.320214]
[1736958790639,3.47283013,3350.9,3350.0,0.217]
[1736958790838,2.98438,3350.8,3350.0,0.217]
[1736958791044,3.47283013,3350.9,3350.0,0.217]
[1736958791575,3.47283013,3351.2,3350.2,2.98486]
[1736958791873,3.47283013,3351.5,3350.4,0.55]
[1736958792075,2.98385,3351.4,3350.4,1.256968]
[1736958792271,2.98385,3351.4,3350.4,4.241648]
[1736958792737,3.89755314,3351.5,3350.0,0.217]
[1736958792942,6.45694013,3351.1,3350.0,0.217]
[1736958793160,2.98422,3351.0,3350.0,2.98503]
[1736958793336,2.98422,3351.0,3350.1,0.217]
[1736958793538,3.47283013,3351.1,3350.1,0.767]
[1736958793764,6.88130314,3351.5,3350.4,0.55]
[1736958793980,2.98408,3351.2,3350.4,0.728674]
[1736958794271,2.98411,3351.1,3350.2,0.55]
[1736958794673,3.0,3351.2,3350.3,2.98478]
[1736958794970,2.98401,3351.2,3350.3,2.98478]
[1736958795175,5.98385,3351.4,3350.3,2.98478]
[1736958795370,2.98385,3351.4,3350.4,3.359858]
[1736958795726,0.7744,3351.7,3350.4,0.375178]
[1736958795928,3.7744,3351.7,3350.3,2.9848]
[1736958796274,3.47283013,3351.9,3350.4,0.02983989]
[1736958796428,2.98329,3352.0,3350.9,2.98419]
[1736958796629,3.0,3351.9,3351.0,2.98416]
[1736958796863,3.0,3351.9,3351.0,0.298416]
[1736958797191,2.98321,3352.1,3351.0,0.298416]
[1736958797391,2.98321,3352.1,3351.1,2.98406]
[1736958797595,3.0,3352.4,3351.4,2.98376]
[1736958797899,3.0,3352.4,3351.2,0.217]
[1736958797900,3.0,3352.2,3351.3,3.53391]
[1736958798117,0.02980968,3352.1,3351.2,0.217]
[1736958798280,5.98313,3352.2,3351.2,0.217]
[1736958798599,3.0,3352.2,3351.3,0.216]
[1736958798775,2.98331,3352.0,3351.3,0.216]
[1736958799083,3.92892401,3352.0,3351.3,0.216]
[1736958799593,3.0,3351.4,3350.9,0.216]
[1736958799798,3.47283013,3351.9,3350.9,3.20019]
[1736958800095,3.75751,3352.3,3350.9,0.216]
[1736958800294,4.18188301,3352.6,3351.5,2.98368]
[1736958800449,1.19912301,3352.6,3351.3,2.98387]
[1736958801087,1.19912301,3352.6,3350.8,2.98431]
[1736958801088,5.9832,3352.2,3351.1,2.98406]
[1736958801246,3.0,3352.2,3351.2,2.984]
[1736958801562,6.45555013,3352.7,3351.3,0.2984]
[1736958801903,2.98277,3352.6,3351.6,2.9836]
[1736958802103,3.0,3352.4,3351.4,3.59253226]
[1736958802287,3.0,3352.4,3351.5,2.98371]
[1736958802493,0.92080321,3353.8,3351.4,2.60875226]
[1736958802695,4.24723013,3353.8,3352.0,2.98325]
[1736958802874,4.24723013,3353.8,3352.3,2.98302]
[1736958803205,3.47283013,3353.8,3352.8,2.9825]
[1736958803421,3.47283013,3353.8,3352.9,2.98245]
[1736958803561,6.45453013,3353.8,3352.6,2.98269]
[1736958803756,3.47283013,3353.8,3352.7,0.298269]
[1736958804009,0.7744,3354.1,3353.2,2.98217]
[1736958804207,2.98151,3354.0,3353.3,0.216]
[1736958804404,2.98178,3353.7,3353.3,0.216]
[1736958804911,3.0,3353.3,3352.9,0.216]
[1736958805123,5.9824,3353.0,3352.9,0.216]
[1736958805403,5.98253,3352.9,3352.6,0.216]
[1736958805760,0.8144,3353.2,3352.6,0.216]
[1736958806063,3.0,3353.3,3352.6,0.216]
[1736958806602,3.0,3353.3,3352.6,3.19874]
[1736958806802,3.0,3353.6,3352.7,0.319874]
[1736958807008,3.0,3353.6,3352.6,0.216]
[1736958807607,2.98197,3353.5,3352.6,0.216]
[1736958808807,3.0,3353.6,3352.6,0.216]
[1736958809106,2.98232,3353.1,3352.7,0.219]
[1736958809453,3.79655,3353.3,3352.7,0.219]
[1736958810075,2.98196,3353.5,3352.7,0.219]
[1736958810263,3.0,3353.1,3352.7,0.219]
[1736958810913,0.55,3353.4,3352.4,0.219]
[1736958811117,0.8144,3353.0,3352.4,0.219]
[1736958811300,3.0,3352.6,3352.4,0.219]
[1736958811508,2.98256,3352.9,3352.4,0.219]
[1736958811816,0.8144,3353.0,3352.4,0.219]
[1736958812113,0.8144,3353.0,3352.3,0.219]
[1736958812114,3.0,3352.7,3352.3,0.219]
[1736958812274,2.98263,3352.8,3352.3,0.219]
[1736958812478,3.0,3352.7,3352.3,0.219]
[1736958812784,2.9827,3352.7,3352.3,0.219]
[1736958813433,3.0,3352.5,3351.5,3.27444523]
[1736958813635,0.7524049,3352.7,3351.6,0.219]
[1736958813838,3.5937053,3353.8,3351.6,0.219]
[1736958813839,0.8144,3353.3,3351.7,0.02982933]
[1736958814037,2.98212,3353.4,3351.9,2.98338]
[1736958814244,2.98212,3353.4,3352.0,0.30132035]
[1736958814438,3.0,3353.3,3352.0,0.30132035]
[1736958814598,5.98188,3353.6,3352.5,2.98282]
[1736958814936,3.0,3353.4,3352.3,2.98297]
[1736958815236,3.7962,3353.7,3352.2,2.98306]
[1736958815451,2.9819,3353.6,3352.5,2.98277]
[1736958815759,2.98197,3353.5,3352.4,2.9829]
[1736958816057,2.98197,3353.5,3352.5,0.29829]
[1736958816751,0.8144,3353.7,3352.3,0.60404287]
[1736958817152,0.8144,3353.7,3352.3,0.63386527]
[1736958817339,3.47283013,3353.9,3352.9,2.98248]
[1736958817540,3.47283013,3353.9,3353.0,0.219]
[1736958817739,0.8144,3354.1,3353.0,0.219]
[1736958817941,0.8144,3354.1,3353.3,2.98212]
[1736958818118,0.8144,3354.1,3353.0,0.219]
[1736958818119,0.60302767,3354.3,3353.4,0.298212]
[1736958818320,0.60302767,3354.3,3353.4,2.98202]
[1736958818522,2.98125,3354.3,3353.2,2.98219]
[1736958818823,2.98125,3354.3,3353.0,0.219]
[1736958819026,2.98125,3354.3,3353.3,2.9821]
[1736958819335,2.98144,3354.1,3353.1,2.98227]
[1736958819540,2.98127,3354.3,3353.2,3.602297]
[1736958819740,0.8144,3354.9,3353.3,0.029816]
[1736958819940,0.8144,3355.2,3353.7,2.9817]
[1736958820273,0.8144,3355.2,3353.5,3.0]
[1736958820429,3.47283013,3355.9,3353.3,2.0]
[1736958820430,0.8144,3355.7,3354.8,2.98079]
[1736958820792,4.28723013,3356.3,3354.9,0.219]
[1736958820992,2.97974,3356.0,3354.9,3.19968]
[1736958821193,2.9798,3356.0,3354.9,3.19968]
[1736958821380,2.97991,3355.8,3354.9,0.219]
[1736958821881,3.02980968,3356.2,3354.5,3.56992327]
[1736958822067,3.47283013,3355.1,3353.3,2.98209]
[1736958822267,3.02980968,3355.0,3353.4,0.82454133]
[1736958822602,3.02980968,3355.0,3352.5,2.9828]
[1736958822603,2.98143,3354.1,3353.5,0.219]
[1736958822899,2.98162,3353.9,3353.4,0.219]
[1736958823095,6.45407013,3354.3,3353.4,0.219]
[1736958823096,2.98177,3353.8,3353.4,0.219]
[1736958823393,0.02980968,3353.7,3353.1,0.219]
[1736958823584,2.98187,3353.6,3353.1,0.219]
[1736958823781,0.94661998,3353.6,3353.1,0.219]
[1736958823986,0.8144,3353.3,3352.5,0.219]
[1736958824181,2.98229,3353.2,3352.5,0.219]
[1736958824510,2.98229,3353.2,3352.6,0.219]
[1736958824699,2.98229,3353.2,3352.7,0.219]
[1736958825204,0.8144,3353.3,3352.7,0.219]
[1736958825387,2.98258,3352.8,3352.7,0.219]
[1736958825592,2.98269,3352.7,3352.4,0.219]
[1736958825816,3.47283013,3353.0,3352.2,0.219]
[1736958826017,2.98276,3352.6,3352.2,0.219]
[1736958826198,6.45528013,3353.0,3352.2,0.219]
[1736958826375,2.98274,3352.7,3352.2,0.219]
[1736958827515,2.9826,3352.8,3352.2,0.219]
[1736958827816,2.98249,3352.9,3352.2,0.219]
[1736958827985,3.8144,3353.3,3352.2,0.219]
[1736958828190,0.8144,3353.3,3352.2,0.219]
[1736958828422,0.8144,3353.3,3352.2,3.20209]
[1736958828736,0.8144,3353.7,3352.3,0.37963533]
[1736958829054,2.98205,3353.4,3352.2,0.219]
[1736958829259,0.02980968,3353.6,3352.3,3.0]
[1736958829418,0.8144,3353.7,3352.3,2.98302]
[1736958829419,2.98206,3353.4,3352.3,2.98302]
[1736958830040,0.57980968,3353.3,3352.0,0.59426327]
[1736958830247,3.0,3352.9,3352.0,0.59426327]
[1736958830424,2.98277,3352.6,3352.0,0.81326327]
[1736958830963,2.98277,3352.6,3352.0,0.219]
[1736958831258,2.98286,3352.5,3352.0,0.219]
[1736958831955,2.98294,3352.4,3352.0,0.219]
[1736958832157,2.98289,3352.5,3352.0,0.219]
[1736958832818,2.98269,3352.7,3352.0,0.219]
[1736958833027,2.98267,3352.7,3352.0,0.219]
[1736958833322,1.30852631,3352.7,3352.0,0.219]
[1736958833953,3.7723,3353.2,3352.0,0.219]
[1736958834155,2.98256,3352.9,3352.0,0.219]
[1736958834303,3.7723,3353.2,3352.0,0.219]
[1736958834524,2.98234,3353.1,3352.1,2.9832]
[1736958834863,1.07528097,3354.9,3353.1,2.98231]
[1736958835009,3.75301,3354.9,3353.9,2.98159]
[1736958835203,0.7723,3354.9,3354.1,2.98134]
[1736958835450,2.98053,3355.2,3354.1,2.98134]
[1736958835750,5.88033155,3355.7,3354.4,2.98107]
[1736958835971,2.98027,3355.4,3354.5,0.219]
[1736958837019,3.24225104,3355.6,3354.5,0.219]
[1736958837219,2.98019,3355.5,3354.5,0.219]
[1736958837419,2.98019,3355.5,3354.5,0.5174]
[1736958837637,2.98045,3355.2,3354.5,0.219]
[1736958838861,0.02980968,3355.5,3354.5,0.219]
[1736958839067,2.98072,3354.9,3354.5,0.219]
[1736958839874,3.0,3355.1,3354.5,0.219]
[1736958840172,2.98069,3355.0,3354.5,0.219]
[1736958840393,5.98053,3355.2,3354.5,0.219]
[1736958840543,2.9806,3355.1,3354.5,0.219]
[1736958841383,0.02980968,3355.1,3353.6,3.5766504]
[1736958841552,3.0,3355.3,3353.7,0.222]
[1736958841877,3.0,3355.3,3353.9,2.98155]
[1736958842181,2.40750142,3355.7,3354.0,0.55]
[1736958842489,2.98035,3355.3,3354.2,0.55]
[1736958842780,3.0,3354.9,3354.1,0.222]
[1736958842978,3.0,3354.9,3354.2,0.55]
[1736958843179,3.0,3355.1,3354.2,3.5313]
[1736958843482,2.98142,3354.1,3353.1,2.98227]
[1736958843638,2.98153,3354.0,3353.4,0.222]
[1736958843984,3.02980968,3354.4,3352.6,35.0]
[1736958844188,3.0,3354.2,3353.1,0.222]
[1736958844394,2.98209,3353.4,3352.5,0.222]
[1736958844678,3.0,3353.2,3352.5,0.222]
[1736958845186,2.98234,3353.1,3352.5,0.222]
[1736958845679,3.0,3353.3,3352.5,0.222]
[1736958845979,0.8218,3354.1,3352.8,2.98257]
[1736958846181,0.8218,3354.6,3352.6,0.55]
[1736958846333,2.98157,3354.0,3352.8,2.98254]
[1736958846536,3.0,3353.9,3352.8,2.98254]
[1736958846985,2.98132,3354.3,3352.6,3.53274]
[1736958847202,5.98142,3354.2,3352.7,0.222]
[1736958847406,3.0,3353.6,3352.7,3.20461]
[1736958847561,3.0,3353.6,3352.7,3.525071]
[1736958847756,2.98187,3353.6,3352.7,0.542461]
[1736958847957,3.0,3354.0,3352.7,0.542461]
[1736958848200,3.78709501,3354.3,3352.8,2.98257]
[1736958848405,3.0,3353.8,3352.9,2.9824]
[1736958848616,2.98118,3354.4,3353.2,2.98214]
[1736958849101,3.0,3354.3,3353.3,35.0]
[1736958849306,6.76796501,3354.8,3353.3,35.0]
[1736958849307,3.0,3354.7,3353.3,35.0]
[1736958849601,2.98135,3354.2,3353.3,35.0]
[1736958849991,0.02980968,3354.1,3352.7,0.222]
[1736958850331,2.98211,3353.4,3352.6,0.222]
[1736958850611,3.0,3353.5,3352.6,0.222]
[1736958850846,3.0,3353.7,3352.8,2.98257]
[1736958851056,3.0,3353.7,3352.6,3.20468]
[1736958851256,0.8218,3354.0,3352.6,3.20468]
[1736958851257,0.8218,3354.0,3352.6,0.222]
[1736958851428,3.0,3353.7,3352.6,0.222]
[1736958851622,3.78709501,3353.8,3352.1,0.222]
[1736958851623,2.98269,3352.7,3352.1,0.222]
[1736958852257,3.0,3352.8,3352.1,0.222]
[1736958853023,3.0,3352.8,3352.2,0.222]
[1736958853237,2.98214,3353.3,3352.2,0.222]
[1736958853238,3.8218,3353.2,3352.2,0.222]
[1736958853441,3.0,3352.9,3352.2,0.222]
[1736958853646,2.98258,3352.8,3352.2,0.222]
[1736958854017,2.98258,3352.8,3352.3,0.222]
[1736958856460,0.8218,3353.2,3352.3,0.222]
[1736958856754,2.98226,3353.2,3352.3,0.222]
[1736958856907,2.98226,3353.2,3352.3,3.20502]
[1736958857109,2.98226,3353.2,3352.4,0.320502]
[1736958857351,3.0,3353.4,3352.5,0.02982557]
[1736958857510,3.0,3353.4,3352.5,2.98284]
[1736958857711,2.9819,3353.6,3352.6,35.0]
[1736958858632,3.0,3353.4,3352.6,35.0]
[1736958859648,3.0,3353.4,3352.2,0.59189407]
[1736958859649,3.0,3353.4,3352.7,0.222]
[1736958859813,3.0,3353.7,3352.7,0.222]
[1736958860013,0.7864,3354.0,3352.8,35.0]
[1736958860219,2.98207,3353.4,3352.7,0.222]
[1736958860629,2.98214,3353.3,3352.7,0.222]
[1736958860861,0.02980968,3353.8,3352.7,0.222]
[1736958860862,2.98223,3353.2,3352.7,0.222]
[1736958861152,3.0,3353.6,3352.7,0.222]
[1736958861153,0.02980968,3353.5,3352.7,0.222]
[1736958861323,2.98233,3353.1,3352.7,0.222]
[1736958861525,0.7864,3353.2,3352.7,0.222]
[1736958861767,0.81620968,3353.2,3352.7,0.222]
[1736958861916,2.98258,3352.8,3352.7,0.222]
[1736958862127,3.0,3353.0,3352.7,0.222]
[1736958862468,2.98258,3352.8,3352.7,0.222]
[1736958864152,2.98248,3353.0,3352.7,0.222]
[1736958864348,0.02980968,3352.9,3352.0,0.222]
[1736958864547,3.02980968,3352.9,3352.0,0.222]
[1736958864751,3.0,3352.7,3352.0,0.222]
[1736958865137,2.98298,3352.4,3352.0,0.222]
[1736958865653,2.9831,3352.3,3351.8,0.58550043]
[1736958865854,2.98329,3352.1,3351.8,0.222]
[1736958866052,2.98339,3351.9,3351.5,0.222]
[1736958866257,3.81860968,3352.5,3350.4,1.194912]